[Event "Late-Titled-Tuesday-Blitz-March-19-2024"]
[Site "Chess.com"]
[Date "2024.03.19"]
[Round "4"]
[White "DrCeltic"]
[Black "JosephRyan"]
[Result "1-0"]
[WhiteElo "2580"]
[BlackElo "2270"]
[TimeControl "180+1"]
[EndTime "14:39:33 PDT"]
[Termination "DrCeltic won by checkmate"]

1. e4 {[%clk 0:02:59.4]} 1... e5 {[%clk 0:02:57.6]} 2. Nf3 {[%clk 0:02:59.4]}
2... Nc6 {[%clk 0:02:57.5]} 3. Bb5 {[%clk 0:02:59.7]} 3... a6 {[%clk 0:02:56.4]}
4. Ba4 {[%clk 0:03:00.1]} 4... Nf6 {[%clk 0:02:56.1]} 5. O-O {[%clk 0:03:00.7]}
5... b5 {[%clk 0:02:54.7]} 6. Bb3 {[%clk 0:03:00.8]} 6... Bc5 {[%clk 0:02:55.3]}
7. d3 {[%clk 0:03:01]} 7... d6 {[%clk 0:02:54.2]} 8. Be3 {[%clk 0:03:01.2]} 8...
Bxe3 {[%clk 0:02:51.7]} 9. fxe3 {[%clk 0:03:02.1]} 9... Ne7 {[%clk 0:02:48.1]}
10. Nc3 {[%clk 0:03:02.3]} 10... Ng6 {[%clk 0:02:47.9]} 11. a4 {[%clk
0:03:01.8]} 11... Rb8 {[%clk 0:02:46.7]} 12. axb5 {[%clk 0:03:00.4]} 12... axb5
{[%clk 0:02:47.1]} 13. Ne2 {[%clk 0:02:58.4]} 13... O-O {[%clk 0:02:45.7]} 14.
Ng3 {[%clk 0:02:58.3]} 14... c6 {[%clk 0:02:45.3]} 15. Qd2 {[%clk 0:02:42.3]}
15... Be6 {[%clk 0:02:40.8]} 16. Ra7 {[%clk 0:02:29.7]} 16... Bxb3 {[%clk
0:02:37.3]} 17. cxb3 {[%clk 0:02:30.6]} 17... Qb6 {[%clk 0:02:30.3]} 18. Rfa1
{[%clk 0:02:30]} 18... Rb7 {[%clk 0:02:28.6]} 19. R7a6 {[%clk 0:02:17.6]} 19...
Qc7 {[%clk 0:02:27.4]} 20. Nf5 {[%clk 0:02:16.7]} 20... d5 {[%clk 0:02:13.1]}
21. Qc2 {[%clk 0:02:06.6]} 21... dxe4 {[%clk 0:02:09.1]} 22. dxe4 {[%clk
0:02:06.3]} 22... Rb6 {[%clk 0:01:56.2]} 23. b4 {[%clk 0:01:56.1]} 23... Rxa6
{[%clk 0:01:54.8]} 24. Rxa6 {[%clk 0:01:55.6]} 24... Rc8 {[%clk 0:01:54]} 25.
Nd2 {[%clk 0:01:40.5]} 25... Qb7 {[%clk 0:01:52.7]} 26. Ra3 {[%clk 0:01:36.8]}
26... Qb6 {[%clk 0:01:51]} 27. Rc3 {[%clk 0:01:27.8]} 27... Qb7 {[%clk
0:01:36.6]} 28. Nd6 {[%clk 0:01:26.8]} 28... Qb8 {[%clk 0:01:30.5]} 29. Nxc8
{[%clk 0:01:26.9]} 29... Qxc8 {[%clk 0:01:31.4]} 30. Rxc6 {[%clk 0:01:27]} 30...
Qg4 {[%clk 0:01:28.5]} 31. Rc8+ {[%clk 0:01:23.3]} 31... Nf8 {[%clk 0:01:28.4]}
32. Qc5 {[%clk 0:01:00.9]} 32... Nd7 {[%clk 0:01:27.1]} 33. Qxb5 {[%clk
0:00:56.2]} 33... h5 {[%clk 0:01:10.6]} 34. Qc4 {[%clk 0:00:53]} 34... h4 {[%clk
0:01:00.1]} 35. h3 {[%clk 0:00:53.1]} 35... Qg3 {[%clk 0:00:56.3]} 36. Nf1
{[%clk 0:00:52.7]} 36... Qe1 {[%clk 0:00:52.8]} 37. b5 {[%clk 0:00:48.2]} 37...
g5 {[%clk 0:00:39.7]} 38. Qc3 {[%clk 0:00:42.4]} 38... Qe2 {[%clk 0:00:32.7]}
39. Qc6 {[%clk 0:00:32.1]} 39... Kg7 {[%clk 0:00:29]} 40. b6 {[%clk 0:00:30.2]}
40... g4 {[%clk 0:00:21.9]} 41. hxg4 {[%clk 0:00:25.3]} 41... Qxg4 {[%clk
0:00:20.2]} 42. b7 {[%clk 0:00:20.7]} 42... h3 {[%clk 0:00:20.3]} 43. g3 {[%clk
0:00:21.2]} 43... Qf3 {[%clk 0:00:20]} 44. Qc2 {[%clk 0:00:16.2]} 44... Ne6
{[%clk 0:00:15]} 45. Qf2 {[%clk 0:00:15.3]} 45... Qd1 {[%clk 0:00:11.2]} 46.
b8=Q {[%clk 0:00:14.2]} 46... Nxb8 {[%clk 0:00:10.3]} 47. Rxb8 {[%clk
0:00:15.1]} 47... Ng5 {[%clk 0:00:10.6]} 48. Kh2 {[%clk 0:00:08.6]} 48... Nf3+
{[%clk 0:00:10.3]} 49. Kxh3 {[%clk 0:00:09.2]} 49... Ng5+ {[%clk 0:00:10.4]} 50.
Kg2 {[%clk 0:00:09.8]} 50... Qd7 {[%clk 0:00:07.8]} 51. Rb6 {[%clk 0:00:09.9]}
51... Qh3+ {[%clk 0:00:07.8]} 52. Kg1 {[%clk 0:00:10.5]} 52... Qh5 {[%clk
0:00:05.5]} 53. Qf6+ {[%clk 0:00:10.2]} 53... Kg8 {[%clk 0:00:05.5]} 54. Rb8+
{[%clk 0:00:10.3]} 54... Kh7 {[%clk 0:00:05.7]} 55. Rh8# {[%clk 0:00:10.4]} 1-0

[Event "Late-Titled-Tuesday-Blitz-March-19-2024"]
[Site "Chess.com"]
[Date "2024.03.19"]
[Round "4"]
[White "Longstom"]
[Black "Eloist"]
[Result "1/2-1/2"]
[WhiteElo "2241"]
[BlackElo "2477"]
[TimeControl "180+1"]
[EndTime "14:39:33 PDT"]
[Termination "Game drawn - insufficient material"]

1. e4 {[%clk 0:02:57.3]} 1... e6 {[%clk 0:02:59.9]} 2. d4 {[%clk 0:02:56.7]}
2... d5 {[%clk 0:03:00.4]} 3. exd5 {[%clk 0:02:57]} 3... exd5 {[%clk 0:03:00.2]}
4. Nf3 {[%clk 0:02:56.4]} 4... Bf5 {[%clk 0:03:00]} 5. Bd3 {[%clk 0:02:56.8]}
5... Bxd3 {[%clk 0:02:59.8]} 6. Qxd3 {[%clk 0:02:57.7]} 6... Nc6 {[%clk
0:02:59.5]} 7. O-O {[%clk 0:02:58.6]} 7... Bd6 {[%clk 0:02:59.6]} 8. Re1+ {[%clk
0:02:59.4]} 8... Nge7 {[%clk 0:02:59.7]} 9. c4 {[%clk 0:02:59]} 9... dxc4 {[%clk
0:02:58.8]} 10. Qxc4 {[%clk 0:02:59.9]} 10... O-O {[%clk 0:02:58.8]} 11. Nc3
{[%clk 0:02:59.4]} 11... Nf5 {[%clk 0:02:58.3]} 12. Bg5 {[%clk 0:02:59.2]} 12...
Qd7 {[%clk 0:02:57]} 13. Rad1 {[%clk 0:02:58.3]} 13... Rae8 {[%clk 0:02:55.5]}
14. Ne5 {[%clk 0:02:57.9]} 14... Bxe5 {[%clk 0:02:50]} 15. dxe5 {[%clk
0:02:58.8]} 15... Qe6 {[%clk 0:02:38.1]} 16. Qxe6 {[%clk 0:02:45.4]} 16... fxe6
{[%clk 0:02:33.5]} 17. Nb5 {[%clk 0:02:35.7]} 17... Rf7 {[%clk 0:02:28.5]} 18.
g4 {[%clk 0:02:26.7]} 18... h6 {[%clk 0:02:11.1]} 19. gxf5 {[%clk 0:01:57.7]}
19... hxg5 {[%clk 0:02:10.1]} 20. fxe6 {[%clk 0:01:34.3]} 20... Rxe6 {[%clk
0:02:09.7]} 21. Rd5 {[%clk 0:01:34.9]} 21... Rfe7 {[%clk 0:01:39.8]} 22. Re3
{[%clk 0:01:24.1]} 22... a6 {[%clk 0:01:35.6]} 23. Nc3 {[%clk 0:01:04.9]} 23...
Nxe5 {[%clk 0:01:25.3]} 24. Rd8+ {[%clk 0:01:00.1]} 24... Kf7 {[%clk 0:01:23.4]}
25. Nd5 {[%clk 0:00:52.2]} 25... Rd7 {[%clk 0:01:16.1]} 26. Rxd7+ {[%clk
0:00:48.1]} 26... Nxd7 {[%clk 0:01:16]} 27. Rxe6 {[%clk 0:00:39.9]} 27... Kxe6
{[%clk 0:01:16.9]} 28. Nxc7+ {[%clk 0:00:40.2]} 28... Kf5 {[%clk 0:01:03.4]} 29.
Ne8 {[%clk 0:00:36.8]} 29... Ne5 {[%clk 0:00:51.8]} 30. Nd6+ {[%clk 0:00:34.5]}
30... Kf4 {[%clk 0:00:47]} 31. Nxb7 {[%clk 0:00:35.4]} 31... Nd3 {[%clk
0:00:45.5]} 32. b3 {[%clk 0:00:33.4]} 32... Nc1 {[%clk 0:00:45.2]} 33. Nc5
{[%clk 0:00:33.5]} 33... Nxa2 {[%clk 0:00:33.4]} 34. Nxa6 {[%clk 0:00:33.3]}
34... Nc1 {[%clk 0:00:29.2]} 35. b4 {[%clk 0:00:33.5]} 35... Ne2+ {[%clk
0:00:25.6]} 36. Kf1 {[%clk 0:00:32.7]} 36... Nd4 {[%clk 0:00:24.5]} 37. Nc7
{[%clk 0:00:33]} 37... Ke5 {[%clk 0:00:20.1]} 38. b5 {[%clk 0:00:33.3]} 38...
Kd6 {[%clk 0:00:17.3]} 39. b6 {[%clk 0:00:33.7]} 39... Kc6 {[%clk 0:00:16.8]}
40. Ne8 {[%clk 0:00:30.2]} 40... Ne6 {[%clk 0:00:16.3]} 41. Kg2 {[%clk
0:00:27.6]} 41... Kxb6 {[%clk 0:00:16.5]} 42. Kg3 {[%clk 0:00:28.3]} 42... Kc6
{[%clk 0:00:16.7]} 43. Kg4 {[%clk 0:00:28.9]} 43... Kd7 {[%clk 0:00:16.9]} 44.
Kf5 {[%clk 0:00:28.3]} 44... Nd4+ {[%clk 0:00:15.5]} 45. Ke4 {[%clk 0:00:28.6]}
45... Kxe8 {[%clk 0:00:13.4]} 46. Kxd4 {[%clk 0:00:29.1]} 46... Kf7 {[%clk
0:00:12.7]} 47. Ke5 {[%clk 0:00:29.7]} 47... Kg6 {[%clk 0:00:13]} 48. Ke6 {[%clk
0:00:30.2]} 48... Kh6 {[%clk 0:00:11.2]} 49. Kf5 {[%clk 0:00:26.9]} 49... Kh5
{[%clk 0:00:11]} 50. f3 {[%clk 0:00:25.7]} 50... Kh6 {[%clk 0:00:10.8]} 51. h3
{[%clk 0:00:20.6]} 51... Kh5 {[%clk 0:00:10.9]} 52. Ke6 {[%clk 0:00:18.7]} 52...
Kh6 {[%clk 0:00:09.6]} 53. Kf7 {[%clk 0:00:18.5]} 53... Kh7 {[%clk 0:00:09.4]}
54. Ke7 {[%clk 0:00:17.1]} 54... Kg6 {[%clk 0:00:09.3]} 55. Ke6 {[%clk
0:00:17.8]} 55... Kh5 {[%clk 0:00:08]} 56. Kf5 {[%clk 0:00:18.2]} 56... Kh6
{[%clk 0:00:07.2]} 57. Kg4 {[%clk 0:00:18.6]} 57... Kg6 {[%clk 0:00:07.5]} 58.
h4 {[%clk 0:00:18.4]} 58... gxh4 {[%clk 0:00:07.3]} 59. Kxh4 {[%clk 0:00:19.3]}
59... Kf5 {[%clk 0:00:07.7]} 60. Kh5 {[%clk 0:00:17.1]} 60... Kf4 {[%clk
0:00:07.4]} 61. Kg6 {[%clk 0:00:18]} 61... Kxf3 {[%clk 0:00:07.7]} 62. Kxg7
{[%clk 0:00:18.9]} 1/2-1/2

[Event "Late-Titled-Tuesday-Blitz-March-19-2024"]
[Site "Chess.com"]
[Date "2024.03.19"]
[Round "4"]
[White "TregubovP"]
[Black "SharathRk6"]
[Result "1-0"]
[WhiteElo "2669"]
[BlackElo "2444"]
[TimeControl "180+1"]
[EndTime "14:39:35 PDT"]
[Termination "TregubovP won on time"]

1. e4 {[%clk 0:03:00.9]} 1... e5 {[%clk 0:02:58.7]} 2. Nf3 {[%clk 0:03:00.1]}
2... Nc6 {[%clk 0:02:59.3]} 3. Bc4 {[%clk 0:02:58.7]} 3... Bc5 {[%clk
0:02:58.9]} 4. d3 {[%clk 0:02:57.7]} 4... Nf6 {[%clk 0:02:59.3]} 5. Nc3 {[%clk
0:02:57.1]} 5... d6 {[%clk 0:02:57.4]} 6. Na4 {[%clk 0:02:55.3]} 6... O-O {[%clk
0:02:54.5]} 7. Nxc5 {[%clk 0:02:48.3]} 7... dxc5 {[%clk 0:02:54]} 8. Bg5 {[%clk
0:02:46.1]} 8... h6 {[%clk 0:02:53]} 9. Bh4 {[%clk 0:02:46]} 9... b6 {[%clk
0:02:53.4]} 10. Nd2 {[%clk 0:02:37.7]} 10... Re8 {[%clk 0:02:23.6]} 11. Nf1
{[%clk 0:02:32.9]} 11... Be6 {[%clk 0:02:21.7]} 12. Ne3 {[%clk 0:02:29.5]} 12...
Bxc4 {[%clk 0:02:12]} 13. Nxc4 {[%clk 0:02:29.6]} 13... Re6 {[%clk 0:02:02.9]}
14. O-O {[%clk 0:02:29.3]} 14... Ne7 {[%clk 0:01:52.4]} 15. Bxf6 {[%clk
0:02:16.3]} 15... Rxf6 {[%clk 0:01:44.9]} 16. Nxe5 {[%clk 0:02:14.9]} 16... Qd4
{[%clk 0:01:42.4]} 17. Nc4 {[%clk 0:02:12]} 17... Rd8 {[%clk 0:01:38.7]} 18. Qe2
{[%clk 0:02:06.4]} 18... b5 {[%clk 0:01:35.8]} 19. Ne3 {[%clk 0:02:03.1]} 19...
Qxb2 {[%clk 0:01:31.9]} 20. Rab1 {[%clk 0:02:02.4]} 20... Qxa2 {[%clk
0:01:21.7]} 21. Rxb5 {[%clk 0:02:02.4]} 21... Nc6 {[%clk 0:01:08.5]} 22. Rxc5
{[%clk 0:01:57.8]} 22... Nd4 {[%clk 0:01:07.7]} 23. Qe1 {[%clk 0:01:35.2]} 23...
Rg6 {[%clk 0:00:58.1]} 24. Qa5 {[%clk 0:01:29.2]} 24... Qxa5 {[%clk 0:00:22.9]}
25. Rxa5 {[%clk 0:01:28.4]} 25... a6 {[%clk 0:00:21.5]} 26. Rfa1 {[%clk
0:01:25.6]} 26... Rdd6 {[%clk 0:00:20.7]} 27. Kf1 {[%clk 0:01:20.7]} 27... Rc6
{[%clk 0:00:17.2]} 28. Nd5 {[%clk 0:01:16.5]} 28... Kf8 {[%clk 0:00:11.6]} 29.
Nb4 {[%clk 0:01:13.1]} 29... Rb6 {[%clk 0:00:10.8]} 30. R1a4 {[%clk 0:00:58.4]}
30... f5 {[%clk 0:00:04.7]} 31. c3 {[%clk 0:00:56.5]} 31... Nb3 {[%clk
0:00:04.3]} 32. Rxf5+ {[%clk 0:00:56.3]} 32... Rgf6 {[%clk 0:00:03.8]} 33. Rxf6+
{[%clk 0:00:55.5]} 33... Rxf6 {[%clk 0:00:04.7]} 34. Rxa6 {[%clk 0:00:53]} 34...
Rf7 {[%clk 0:00:05.3]} 35. Nd5 {[%clk 0:00:45.2]} 35... Kg8 {[%clk 0:00:05.1]}
36. Rc6 {[%clk 0:00:41.2]} 36... Nd2+ {[%clk 0:00:04.9]} 37. Ke2 {[%clk
0:00:40.4]} 37... Nb1 {[%clk 0:00:05.8]} 38. Ke3 {[%clk 0:00:35.8]} 38... Na3
{[%clk 0:00:04.9]} 39. Rxc7 {[%clk 0:00:34.6]} 39... Rf8 {[%clk 0:00:03.7]} 40.
Ne7+ {[%clk 0:00:32.4]} 40... Kh7 {[%clk 0:00:03.8]} 41. Nf5 {[%clk 0:00:32.8]}
41... Rg8 {[%clk 0:00:03.7]} 42. h4 {[%clk 0:00:32]} 42... Kh8 {[%clk
0:00:03.5]} 43. h5 {[%clk 0:00:32.4]} 43... Nb5 {[%clk 0:00:03.3]} 44. Rc5
{[%clk 0:00:28.5]} 44... Na7 {[%clk 0:00:02.9]} 45. e5 {[%clk 0:00:27.9]} 45...
Nc8 {[%clk 0:00:03.3]} 46. e6 {[%clk 0:00:27.3]} 46... Re8 {[%clk 0:00:02.9]}
47. Kf4 {[%clk 0:00:22.5]} 47... Nb6 {[%clk 0:00:03.1]} 48. Rb5 {[%clk
0:00:18.3]} 48... Rxe6 {[%clk 0:00:03.2]} 49. c4 {[%clk 0:00:15.7]} 49... Nd7
{[%clk 0:00:02.9]} 50. Rb7 {[%clk 0:00:14.6]} 50... Nc5 {[%clk 0:00:02.2]} 51.
Rb8+ {[%clk 0:00:12.5]} 51... Kh7 {[%clk 0:00:01.9]} 52. Rd8 {[%clk 0:00:13.1]}
52... Rf6 {[%clk 0:00:01.7]} 53. Rd5 {[%clk 0:00:12.8]} 53... Ne6+ {[%clk
0:00:02]} 54. Ke3 {[%clk 0:00:12.2]} 54... Ng5 {[%clk 0:00:02.5]} 55. g4 {[%clk
0:00:11.8]} 55... Re6+ {[%clk 0:00:02.9]} 56. Kf4 {[%clk 0:00:10.8]} 56... Nh3+
{[%clk 0:00:03.3]} 57. Kg3 {[%clk 0:00:10.7]} 57... Ng1 {[%clk 0:00:03.6]} 58.
Nd4 {[%clk 0:00:09.4]} 58... g6 {[%clk 0:00:01.3]} 59. Nxe6 {[%clk 0:00:08.6]}
1-0

[Event "Late-Titled-Tuesday-Blitz-March-19-2024"]
[Site "Chess.com"]
[Date "2024.03.19"]
[Round "4"]
[White "maciek_92"]
[Black "rhungaski"]
[Result "1-0"]
[WhiteElo "2892"]
[BlackElo "2607"]
[TimeControl "180+1"]
[EndTime "14:39:36 PDT"]
[Termination "maciek_92 won on time"]

1. c4 {[%clk 0:03:00.9]} 1... Nf6 {[%clk 0:02:58.9]} 2. Nc3 {[%clk 0:03:01]}
2... g6 {[%clk 0:02:59.4]} 3. g3 {[%clk 0:03:01.6]} 3... Bg7 {[%clk 0:02:59.4]}
4. Bg2 {[%clk 0:03:02.4]} 4... O-O {[%clk 0:03:00.1]} 5. e3 {[%clk 0:03:03]}
5... d6 {[%clk 0:02:59.9]} 6. Nge2 {[%clk 0:03:03.6]} 6... e5 {[%clk 0:02:59.1]}
7. O-O {[%clk 0:03:03.7]} 7... Re8 {[%clk 0:02:48.4]} 8. d4 {[%clk 0:03:04.1]}
8... e4 {[%clk 0:02:47.2]} 9. f3 {[%clk 0:03:04.2]} 9... exf3 {[%clk 0:02:46.3]}
10. Bxf3 {[%clk 0:03:05.1]} 10... c6 {[%clk 0:02:45.1]} 11. Qd3 {[%clk
0:03:05.1]} 11... Bh3 {[%clk 0:02:41.3]} 12. Rf2 {[%clk 0:03:04.1]} 12... Ng4
{[%clk 0:02:35.2]} 13. Bxg4 {[%clk 0:03:04.8]} 13... Bxg4 {[%clk 0:02:36.1]} 14.
e4 {[%clk 0:03:05.5]} 14... c5 {[%clk 0:02:09.6]} 15. Be3 {[%clk 0:02:55.9]}
15... Nc6 {[%clk 0:02:00.3]} 16. Raf1 {[%clk 0:02:47.4]} 16... Bh3 {[%clk
0:01:33.3]} 17. Rd1 {[%clk 0:02:37.7]} 17... cxd4 {[%clk 0:01:32.4]} 18. Bxd4
{[%clk 0:02:33.3]} 18... Nxd4 {[%clk 0:01:22.7]} 19. Nxd4 {[%clk 0:02:34.2]}
19... Bg4 {[%clk 0:01:19.7]} 20. Rdf1 {[%clk 0:02:33.6]} 20... Bh3 {[%clk
0:01:12]} 21. Rd1 {[%clk 0:02:33.1]} 21... Rc8 {[%clk 0:00:43.7]} 22. Ndb5
{[%clk 0:02:30.2]} 22... Bg4 {[%clk 0:00:41.8]} 23. Rdf1 {[%clk 0:02:29.1]}
23... Qb6 {[%clk 0:00:27.4]} 24. Nd5 {[%clk 0:02:27.5]} 24... Qc5 {[%clk
0:00:23.4]} 25. b4 {[%clk 0:02:28.1]} 25... Qxc4 {[%clk 0:00:16.1]} 26. Qxc4
{[%clk 0:02:29]} 26... Rxc4 {[%clk 0:00:16.6]} 27. Nxd6 {[%clk 0:02:29.7]} 27...
Rcxe4 {[%clk 0:00:17]} 28. Nxe8 {[%clk 0:02:26]} 28... Rxe8 {[%clk 0:00:17.9]}
29. Nf6+ {[%clk 0:02:21]} 29... Bxf6 {[%clk 0:00:16.4]} 30. Rxf6 {[%clk
0:02:21.9]} 30... Be6 {[%clk 0:00:15.1]} 31. a3 {[%clk 0:02:21.6]} 31... Rd8
{[%clk 0:00:14.9]} 32. R6f3 {[%clk 0:02:21.5]} 32... Rd2 {[%clk 0:00:14.4]} 33.
Rc1 {[%clk 0:02:21.7]} 33... Kg7 {[%clk 0:00:13.6]} 34. Rc7 {[%clk 0:02:18.3]}
34... Bd5 {[%clk 0:00:13]} 35. Re3 {[%clk 0:02:17.2]} 35... Rg2+ {[%clk
0:00:12.2]} 36. Kf1 {[%clk 0:02:17.8]} 36... Rxh2 {[%clk 0:00:12.4]} 37. Rd3
{[%clk 0:02:14.2]} 37... Be6 {[%clk 0:00:11.2]} 38. Kg1 {[%clk 0:02:11]} 38...
Ra2 {[%clk 0:00:10.2]} 39. Rxb7 {[%clk 0:02:11.2]} 39... a6 {[%clk 0:00:07.8]}
40. Ra7 {[%clk 0:02:06.5]} 40... h5 {[%clk 0:00:07.5]} 41. Re3 {[%clk 0:02:04]}
41... Bc4 {[%clk 0:00:07.7]} 42. Rc3 {[%clk 0:02:04]} 42... Bb5 {[%clk
0:00:05.4]} 43. Rcc7 {[%clk 0:02:03.3]} 43... Rxa3 {[%clk 0:00:05.4]} 44. Rxf7+
{[%clk 0:02:03.2]} 44... Kh6 {[%clk 0:00:06.2]} 45. Kf2 {[%clk 0:01:59]} 45...
Kg5 {[%clk 0:00:04.7]} 46. Rac7 {[%clk 0:01:57.4]} 46... Ra2+ {[%clk 0:00:03.6]}
47. Kg1 {[%clk 0:01:53]} 47... Rb2 {[%clk 0:00:03.4]} 48. Rf4 {[%clk 0:01:49.8]}
48... Rb3 {[%clk 0:00:02.3]} 49. Kh2 {[%clk 0:01:47.5]} 49... Rb2+ {[%clk
0:00:02]} 50. Kg1 {[%clk 0:01:45.4]} 50... Rb3 {[%clk 0:00:01.8]} 51. Kf2 {[%clk
0:01:45.6]} 51... Rb2+ {[%clk 0:00:02.3]} 52. Ke3 {[%clk 0:01:43.8]} 52... Rb3+
{[%clk 0:00:02.7]} 53. Ke4 {[%clk 0:01:44.4]} 53... Rxg3 {[%clk 0:00:02.9]} 54.
Rc5+ {[%clk 0:01:45]} 54... Kh6 {[%clk 0:00:03.5]} 55. Ke5 {[%clk 0:01:44]}
55... Rg5+ {[%clk 0:00:03.7]} 56. Kf6 {[%clk 0:01:43.7]} 56... Rg1 {[%clk
0:00:04.5]} 57. Rc8 {[%clk 0:01:43.2]} 57... Kh7 {[%clk 0:00:04.4]} 58. Rc7+
{[%clk 0:01:43.6]} 58... Kh6 {[%clk 0:00:05]} 59. Kf7 {[%clk 0:01:40.9]} 59...
Kh7 {[%clk 0:00:05.3]} 60. Kf8+ {[%clk 0:01:40.6]} 60... Kh6 {[%clk 0:00:04]}
61. Rc5 {[%clk 0:01:34.8]} 61... Rg4 {[%clk 0:00:03.9]} 62. Rf7 {[%clk
0:01:34.7]} 62... Rxb4 {[%clk 0:00:03.4]} 63. Rg7 {[%clk 0:01:33.3]} 63... Rf4+
{[%clk 0:00:03.1]} 64. Rf7 {[%clk 0:01:31.3]} 64... Rxf7+ {[%clk 0:00:03.2]} 65.
Kxf7 {[%clk 0:01:32.2]} 65... h4 {[%clk 0:00:03]} 66. Kf6 {[%clk 0:01:30.1]}
66... h3 {[%clk 0:00:02.4]} 67. Rc8 {[%clk 0:01:27.5]} 67... Kh5 {[%clk
0:00:02]} 68. Rh8+ {[%clk 0:01:14.9]} 68... Kg4 {[%clk 0:00:02.4]} 69. Kxg6
{[%clk 0:01:15.8]} 69... a5 {[%clk 0:00:03]} 70. Kf6 {[%clk 0:01:10.2]} 70... a4
{[%clk 0:00:03]} 71. Ke5 {[%clk 0:01:11]} 71... a3 {[%clk 0:00:03.1]} 72. Ke4
{[%clk 0:01:08.8]} 72... a2 {[%clk 0:00:01.2]} 73. Rg8+ {[%clk 0:01:09.1]} 73...
Kh4 {[%clk 0:00:01.7]} 74. Rg1 {[%clk 0:01:10]} 74... h2 {[%clk 0:00:01.6]} 75.
Ra1 {[%clk 0:01:09.2]} 75... Kg3 {[%clk 0:00:01.5]} 76. Ke3 {[%clk 0:01:07.7]}
76... Bc4 {[%clk 0:00:01.3]} 77. Rc1 {[%clk 0:01:05.5]} 1-0

[Event "Late-Titled-Tuesday-Blitz-March-19-2024"]
[Site "Chess.com"]
[Date "2024.03.19"]
[Round "4"]
[White "ameetghasi100"]
[Black "RantomOpening"]
[Result "1/2-1/2"]
[WhiteElo "2784"]
[BlackElo "2596"]
[TimeControl "180+1"]
[EndTime "14:39:37 PDT"]
[Termination "Game drawn by repetition"]

1. c3 {[%clk 0:02:59.2]} 1... d5 {[%clk 0:02:57.8]} 2. d4 {[%clk 0:02:58.8]}
2... e6 {[%clk 0:02:58]} 3. Bf4 {[%clk 0:02:57.8]} 3... Bd6 {[%clk 0:02:57.8]}
4. Bg3 {[%clk 0:02:58]} 4... Nf6 {[%clk 0:02:57.8]} 5. e3 {[%clk 0:02:56.5]}
5... O-O {[%clk 0:02:57.9]} 6. Nd2 {[%clk 0:02:52.9]} 6... c5 {[%clk 0:02:58.2]}
7. Bd3 {[%clk 0:02:52.6]} 7... Qc7 {[%clk 0:02:58.7]} 8. Ngf3 {[%clk 0:02:50.7]}
8... Nbd7 {[%clk 0:02:58.2]} 9. O-O {[%clk 0:02:50.6]} 9... e5 {[%clk
0:02:58.5]} 10. dxe5 {[%clk 0:02:39]} 10... Nxe5 {[%clk 0:02:59.4]} 11. Nxe5
{[%clk 0:02:37.1]} 11... Bxe5 {[%clk 0:03:00.3]} 12. Qa4 {[%clk 0:02:29.6]}
12... Bd7 {[%clk 0:02:55.6]} 13. Qh4 {[%clk 0:02:28.8]} 13... Bxg3 {[%clk
0:02:55]} 14. Qxg3 {[%clk 0:02:27.9]} 14... Qxg3 {[%clk 0:02:54.2]} 15. hxg3
{[%clk 0:02:28.8]} 15... Bc6 {[%clk 0:02:53.7]} 16. Rad1 {[%clk 0:02:25.5]}
16... Rad8 {[%clk 0:02:52.7]} 17. Rfe1 {[%clk 0:02:25.5]} 17... Rfe8 {[%clk
0:02:52.6]} 18. Bb1 {[%clk 0:02:24.4]} 18... Kf8 {[%clk 0:02:51.4]} 19. f3
{[%clk 0:02:22.9]} 19... g6 {[%clk 0:02:51.5]} 20. g4 {[%clk 0:02:23.2]} 20...
d4 {[%clk 0:02:49.3]} 21. cxd4 {[%clk 0:02:22.7]} 21... cxd4 {[%clk 0:02:50.2]}
22. e4 {[%clk 0:02:23.6]} 22... Ba4 {[%clk 0:02:40.8]} 23. Rc1 {[%clk
0:02:22.3]} 23... Rc8 {[%clk 0:02:36.1]} 24. g5 {[%clk 0:02:04.8]} 24... Nh5
{[%clk 0:02:34]} 25. Kf2 {[%clk 0:02:03.9]} 25... Nf4 {[%clk 0:02:31.5]} 26. Rh1
{[%clk 0:01:51.4]} 26... Kg7 {[%clk 0:02:28]} 27. Rxc8 {[%clk 0:01:34.2]} 27...
Rxc8 {[%clk 0:02:27.4]} 28. g3 {[%clk 0:01:34.8]} 28... Ne6 {[%clk 0:02:27.2]}
29. f4 {[%clk 0:01:30]} 29... Bc2 {[%clk 0:02:27.1]} 30. Rc1 {[%clk 0:01:29.8]}
30... d3 {[%clk 0:02:23.9]} 31. Ke3 {[%clk 0:01:25.2]} 31... Rc6 {[%clk
0:02:12.7]} 32. Bxc2 {[%clk 0:00:55]} 32... Rxc2 {[%clk 0:02:11.6]} 33. Rxc2
{[%clk 0:00:50.4]} 33... dxc2 {[%clk 0:02:11.4]} 34. Nb3 {[%clk 0:00:50.8]}
34... Nc5 {[%clk 0:02:11.7]} 35. Nc1 {[%clk 0:00:51.3]} 35... f6 {[%clk
0:02:09.1]} 36. gxf6+ {[%clk 0:00:48.5]} 36... Kxf6 {[%clk 0:02:10]} 37. Kd4
{[%clk 0:00:49.4]} 37... Ne6+ {[%clk 0:02:08.8]} 38. Kd3 {[%clk 0:00:48.5]}
38... g5 {[%clk 0:02:08.9]} 39. f5 {[%clk 0:00:45.3]} 39... Nc5+ {[%clk
0:02:08.7]} 40. Kd4 {[%clk 0:00:45.4]} 40... Nd7 {[%clk 0:02:08.7]} 41. Kd3
{[%clk 0:00:14]} 41... Nc5+ {[%clk 0:02:05.1]} 42. Kd4 {[%clk 0:00:13.9]} 42...
Nd7 {[%clk 0:02:05.4]} 43. Kd3 {[%clk 0:00:14]} 43... Ke5 {[%clk 0:02:03.5]} 44.
Ke3 {[%clk 0:00:08.7]} 44... h5 {[%clk 0:01:58.7]} 45. Nd3+ {[%clk 0:00:08.9]}
45... Kf6 {[%clk 0:01:58.7]} 46. Kd2 {[%clk 0:00:08.5]} 46... Ne5 {[%clk
0:01:52.5]} 47. Nf2 {[%clk 0:00:07.6]} 47... g4 {[%clk 0:01:39.6]} 48. Kxc2
{[%clk 0:00:07.3]} 48... h4 {[%clk 0:01:40.1]} 49. gxh4 {[%clk 0:00:05.6]} 49...
g3 {[%clk 0:01:40.4]} 50. Nh3 {[%clk 0:00:06.1]} 50... g2 {[%clk 0:01:35.3]} 51.
Ng1 {[%clk 0:00:05.7]} 51... Nc4 {[%clk 0:01:32.6]} 52. b3 {[%clk 0:00:04.9]}
52... Nd6 {[%clk 0:01:32.2]} 53. Kd3 {[%clk 0:00:05.3]} 53... Ke5 {[%clk
0:01:33.1]} 54. h5 {[%clk 0:00:05.9]} 54... Nxe4 {[%clk 0:01:33.2]} 55. h6
{[%clk 0:00:05.4]} 55... Nf6 {[%clk 0:01:33.8]} 56. Ke3 {[%clk 0:00:05.1]} 56...
Ng4+ {[%clk 0:01:33.4]} 57. Kf3 {[%clk 0:00:05.7]} 57... Nxh6 {[%clk 0:01:34.3]}
58. Kxg2 {[%clk 0:00:05]} 58... Nxf5 {[%clk 0:01:35.2]} 59. Kf3 {[%clk
0:00:05.6]} 59... Kd4 {[%clk 0:01:35.1]} 60. Kf4 {[%clk 0:00:06.1]} 60... Nd6
{[%clk 0:01:34.5]} 61. Ne2+ {[%clk 0:00:06.1]} 61... Kd3 {[%clk 0:01:34.4]} 62.
Ng3 {[%clk 0:00:06.2]} 62... Kc3 {[%clk 0:01:34.5]} 63. Ke5 {[%clk 0:00:06.6]}
63... Nb5 {[%clk 0:01:32.8]} 64. Ne4+ {[%clk 0:00:07]} 64... Kb2 {[%clk
0:01:33.1]} 65. Nc5 {[%clk 0:00:07.5]} 65... b6 {[%clk 0:01:31.9]} 66. Na6
{[%clk 0:00:07.4]} 66... Kxa2 {[%clk 0:01:32.4]} 67. b4 {[%clk 0:00:07.7]} 67...
Kb3 {[%clk 0:01:31.7]} 68. Kd5 {[%clk 0:00:08.2]} 68... Nc3+ {[%clk 0:01:26.9]}
69. Kc6 {[%clk 0:00:08.3]} 69... Kc4 {[%clk 0:01:26.8]} 70. Kb7 {[%clk
0:00:07.8]} 70... Nd5 {[%clk 0:01:25.3]} 71. Kxa7 {[%clk 0:00:07.6]} 71... b5
{[%clk 0:01:25.7]} 72. Kb7 {[%clk 0:00:06.6]} 72... Nc3 {[%clk 0:01:18.5]} 73.
Kc6 {[%clk 0:00:06.5]} 73... Nd5 {[%clk 0:01:17.4]} 74. Kb7 {[%clk 0:00:06.3]}
74... Kc3 {[%clk 0:01:09.8]} 75. Kc6 {[%clk 0:00:06.1]} 75... Kc4 {[%clk
0:01:10]} 76. Kb7 {[%clk 0:00:06.5]} 1/2-1/2